[Event "2nd Salamanca Festival 2019"]
[Site "Salamanca"]
[Date "2019.11.29"]
[Round "5.1"]
[White "Vega Gutierrez, Sabrina"]
[Black "Santos Ruiz, Miguel"]
[Result "0-1"]
[ECO "B40"]
[WhiteElo "2374"]
[BlackElo "2583"]
[Annotator "RC"]
[PlyCount "120"]
[EventDate "2019.11.27"]
[EventType "swiss"]
[EventCountry "ESP"]
[SourceTitle "playchess.com"]
[Source "ChessBase"]
[SourceQuality "1"]
[TimeControl "2400+5"]

1. e4 {[%emt 0:00:00]} e6 {[%emt 0:00:00]} 2. Qe2 {[%emt 0:00:56]} c5 {[%emt 0:00:05]} 3. Nf3 {[%emt 0:00:12]} Nc6 {[%emt 0:00:10]} 4. c3 {[%emt 0:00:04]} d5 {[%emt 0:00:05]} 5. d3 {[%emt 0:00:07]} e5 {[%emt 0:00:11]} 6. g3 {[%emt 0:02:42]} d4 {[%emt 0:00:04]} 7. Bg2 {[%emt 0:00:45]} Bd6 {[%emt 0:00:03]} 8. O-O {[%emt 0:00:06]} Nge7 {[%emt 0:00:02]} 9. Na3 {[%emt 0:00:32]} Ng6 {[%emt 0:01:03]} 10. Ne1 {[%emt 0:01:32]} O-O {[%emt 0:00:59]} 11. h4 {[%emt 0:00:30]} Re8 {[%emt 0:00:43]} 12. h5 {[%emt 0:00:05]} Nf8 {[%emt 0:00:02]} 13. f4 {[%emt 0:05:35]} h6 {[%emt 0:04:04]} 14. f5 {[%emt 0:05:26]} f6 {[%emt 0:03:26]} 15. Nf3 {[%emt 0:00:19]} Rb8 {[%emt 0:00:11]} 16. Nc4 {[%emt 0:02:10]} Bc7 {[%emt 0:00:58]} 17. a4 {[%emt 0:04:52]} a6 {[%emt 0:00:27]} 18. Nh4 {[%emt 0:01:07]} b5 {[%emt 0:00:10]} 19. axb5 {[%emt 0:00:57]} axb5 {[%emt 0:00:02]} 20. Nd2 {[%emt 0:00:01]} dxc3 {[%emt 0:02:26]} 21. bxc3 {[%emt 0:00:02]} Qd6 {[%emt 0:00:23]} 22. Ndf3 {[%emt 0:00:33]} Qd7 {[%emt 0:03:14]} 23. Be3 {[%emt 0:00:11]} Bd6 {[%emt 0:00:02]} 24. Nh2 {[%emt 0:00:17]} b4 {[%emt 0:01:24]} 25. cxb4 {[%emt 0:02:21]} cxb4 {[%emt 0:01:07]} 26. Ng4 {[%emt 0:00:02]} Nh7 {[%emt 0:00:03]} 27. d4 {[%emt 0:07:17]} Ng5 {[%emt 0:01:46]} 28. Qc4+ {[%emt 0:00:21]} Kh7 {[%emt 0:00:03]} 29. d5 {[%emt 0:00:14]} Nd4 {[%emt 0:00:03]} 30. Bxd4 {[%emt 0:01:18]} exd4 {[%emt 0:00:02]} 31. Qxd4 {[%emt 0:00:07]} Nxe4 {[%emt 0:02:48]} 32. Bxe4 {[%emt 0:01:07]} Qe7 {[%emt 0:00:01]} 33. Nf2 {[%emt 0:00:36]} Bc5 {[%emt 0:00:10]} 34. Qc4 {[%emt 0:00:08]} Bxf2+ {[%emt 0:00:22]} 35. Rxf2 {[%emt 0:00:01]} Qxe4 {[%emt 0:00:02]} 36. Qxe4 {[%emt 0:00:02]} Rxe4 {[%emt 0:00:01]} 37. Rd2 {[%emt 0:00:16]} b3 {[%emt 0:00:15]} 38. d6 {[%emt 0:00:08]} Rc4 {[%emt 0:01:43]} 39. Rb1 {[%emt 0:00:01]} Rc2 {[%emt 0:00:02]} 40. Rdd1 {[%emt 0:00:11]} b2 {[%emt 0:00:09]} 41. Nf3 {[%emt 0:00:04]} Bxf5 {[%emt 0:00:44]} 42. Nd4 {[%emt 0:00:01]} Rd2 {[%emt 0:00:01]} 43. Nxf5 {[%emt 0:00:13]} Rxd1+ {[%emt 0:00:03]} 44. Rxd1 {[%emt 0:00:01]} b1=Q {[%emt 0:00:04]} 45. Rxb1 {[%emt 0:00:05]} Rxb1+ {[%emt 0:00:01]} 46. Kf2 {[%emt 0:00:01]} Kg8 {[%emt 0:00:52]} 47. Ke3 {[%emt 0:00:10]} Kf7 {[%emt 0:00:54]} 48. g4 {[%emt 0:00:01]} Rd1 {[%emt 0:00:47]} 49. Kf4 {[%emt 0:00:06]} Re1 {[%emt 0:01:14]} 50. Kf3 {[%emt 0:00:01]} Re5 {[%emt 0:00:32]} 51. Kf4 {[%emt 0:00:01]} Re8 {[%emt 0:00:54]} 52. Kf3 {[%emt 0:00:09]} Re1 {[%emt 0:00:13]} 53. Kf4 {[%emt 0:00:01]} g5+ {[%emt 0:01:41]} 54. Kf3 {[%emt 0:00:17]} Rf1+ {[%emt 0:01:42]} 55. Ke4 {[%emt 0:00:02]} Rf4+ {[%emt 0:00:01]} 56. Kd5 {[%emt 0:00:01]} Rxf5+ {[%emt 0:00:01]} 57. gxf5 {[%emt 0:00:01]} Ke8 {[%emt 0:00:01]} 58. Ke6 {[%emt 0:00:07]} g4 {[%emt 0:00:01]} 59. Kxf6 {[%emt 0:00:14]} g3 {[%emt 0:00:01]} 60. Ke6 {[%emt 0:00:06]} g2 {[%emt 0:00:02]} 0-1

[Event "2nd Salamanca Festival 2019"]
[Site "Salamanca"]
[Date "2019.11.30"]
[Round "6.4"]
[White "Vega Gutierrez, Sabrina"]
[Black "Milliet, Sophie"]
[Result "1/2-1/2"]
[ECO "A33"]
[WhiteElo "2374"]
[BlackElo "2394"]
[Annotator "NA"]
[PlyCount "48"]
[EventDate "2019.11.27"]
[EventType "swiss"]
[EventCountry "ESP"]
[SourceTitle "playchess.com"]
[Source "ChessBase"]
[SourceQuality "1"]
[TimeControl "2400+5"]

1. Nf3 {[%emt 0:00:00]} c5 {[%emt 0:00:00]} 2. c4 {[%emt 0:00:03]} Nc6 {[%emt 0:00:05]} 3. d4 {[%emt 0:00:05]} cxd4 {[%emt 0:00:08]} 4. Nxd4 {[%emt 0:00:03]} Nf6 {[%emt 0:00:05]} 5. Nc3 {[%emt 0:00:03]} e6 {[%emt 0:00:08]} 6. a3 {[%emt 0:00:04]} Be7 {[%emt 0:01:49]} 7. e4 {[%emt 0:00:26]} O-O {[%emt 0:00:15]} 8. Be2 {[%emt 0:01:58]} d5 {[%emt 0:00:29]} 9. exd5 {[%emt 0:07:46]} exd5 {[%emt 0:00:01]} 10. O-O {[%emt 0:00:37]} Nxd4 {[%emt 0:01:05]} 11. Qxd4 {[%emt 0:00:03]} dxc4 {[%emt 0:00:07]} 12. Qxd8 {[%emt 0:00:12]} Rxd8 {[%emt 0:00:02]} 13. Bxc4 {[%emt 0:00:03]} h6 {[%emt 0:05:48]} 14. Be3 {[%emt 0:00:20]} Bf5 {[%emt 0:01:06]} 15. Rfd1 {[%emt 0:01:02]} a6 {[%emt 0:01:26]} 16. Bb6 {[%emt 0:01:52]} Rxd1+ {[%emt 0:00:13]} 17. Rxd1 {[%emt 0:00:03]} Rc8 {[%emt 0:01:09]} 18. Nd5 {[%emt 0:00:37]} Nxd5 {[%emt 0:01:50]} 19. Bxd5 {[%emt 0:00:03]} Rc2 {[%emt 0:01:45]} 20. b4 {[%emt 0:06:39]} Rc3 {[%emt 0:00:07]} 21. Bxb7 {[%emt 0:00:50]} Rxa3 {[%emt 0:00:03]} 22. Bc5 {[%emt 0:00:03]} Bxc5 {[%emt 0:03:49]} 23. bxc5 {[%emt 0:00:03]} Rc3 {[%emt 0:00:02]} 24. Bxa6 {[%emt 0:06:27]} Rxc5 {[%emt 0:00:04]} 1/2-1/2

[Event "2nd Salamanca Festival 2019"]
[Site "Salamanca"]
[Date "2019.11.30"]
[Round "7.1"]
[White "Milliet, Sophie"]
[Black "Santos Ruiz, Miguel"]
[Result "1/2-1/2"]
[ECO "B31"]
[WhiteElo "2394"]
[BlackElo "2583"]
[Annotator "RC"]
[PlyCount "88"]
[EventDate "2019.11.27"]
[EventType "swiss"]
[EventCountry "ESP"]
[SourceTitle "playchess.com"]
[Source "ChessBase"]
[SourceQuality "1"]
[TimeControl "2400+5"]

1. e4 {[%emt 0:00:00]} c5 {[%emt 0:00:00]} 2. Nf3 {[%emt 0:00:00]} Nc6 {[%emt 0:00:00]} 3. Bb5 {[%emt 0:00:44]} g6 {[%emt 0:00:00]} 4. Bxc6 {[%emt 0:00:02]} bxc6 {[%emt 0:00:02]} 5. d4 {[%emt 0:00:09]} cxd4 {[%emt 0:00:02]} 6. Qxd4 {[%emt 0:00:01]} f6 {[%emt 0:00:02]} 7. O-O {[%emt 0:00:08]} d6 {[%emt 0:00:02]} 8. c4 {[%emt 0:00:02]} c5 {[%emt 0:00:01]} 9. Qd3 {[%emt 0:00:04]} Bg7 {[%emt 0:00:15]} 10. Nc3 {[%emt 0:00:03]} Nh6 {[%emt 0:00:03]} 11. Nh4 {[%emt 0:00:15]} Nf7 {[%emt 0:01:38]} 12. f4 {[%emt 0:00:24]} O-O {[%emt 0:00:18]} 13. f5 {[%emt 0:00:39]} g5 {[%emt 0:02:16]} 14. Nf3 {[%emt 0:00:02]} Rb8 {[%emt 0:00:01]} 15. h3 {[%emt 0:02:12]} e6 {[%emt 0:00:30]} 16. b3 {[%emt 0:01:23]} Qd7 {[%emt 0:01:04]} 17. fxe6 {[%emt 0:04:08]} Qxe6 {[%emt 0:00:02]} 18. Bb2 {[%emt 0:00:02]} f5 {[%emt 0:01:03]} 19. exf5 {[%emt 0:01:58]} Qxf5 {[%emt 0:00:03]} 20. Qd2 {[%emt 0:00:13]} Qf4 {[%emt 0:04:01]} 21. Nd5 {[%emt 0:03:12]} Qxd2 {[%emt 0:00:04]} 22. Ne7+ {[%emt 0:00:02]} Kh8 {[%emt 0:00:02]} 23. Bxg7+ {[%emt 0:00:01]} Kxg7 {[%emt 0:00:01]} 24. Nxd2 {[%emt 0:00:03]} Bb7 {[%emt 0:01:32]} 25. Nf5+ {[%emt 0:01:44]} Kg6 {[%emt 0:00:37]} 26. Rae1 {[%emt 0:05:24]} Rbe8 {[%emt 0:00:02]} 27. Re7 {[%emt 0:03:08]} Bc8 {[%emt 0:02:19]} 28. Rfe1 {[%emt 0:01:48]} Bd7 {[%emt 0:01:45]} 29. g4 {[%emt 0:00:37]} Rxe7 {[%emt 0:02:05]} 30. Nxe7+ {[%emt 0:00:05]} Kg7 {[%emt 0:00:01]} 31. Nd5 {[%emt 0:02:03]} Ne5 {[%emt 0:01:31]} 32. Rf1 {[%emt 0:00:16]} Re8 {[%emt 0:01:27]} 33. Nf6 {[%emt 0:01:05]} Re6 {[%emt 0:01:45]} 34. Nh5+ {[%emt 0:06:12]} Kg6 {[%emt 0:00:02]} 35. Rf8 {[%emt 0:00:03]} Bc6 {[%emt 0:00:22]} 36. Rg8+ {[%emt 0:00:05]} Kf7 {[%emt 0:00:23]} 37. Rg7+ {[%emt 0:00:13]} Kf8 {[%emt 0:00:01]} 38. Rxa7 {[%emt 0:00:57]} Nd3 {[%emt 0:01:21]} 39. Rxh7 {[%emt 0:00:20]} Re1+ {[%emt 0:02:29]} 40. Nf1 {[%emt 0:00:04]} Re2 {[%emt 0:00:00]} 41. Nfg3 {[%emt 0:00:21]} Rg2+ {[%emt 0:01:11]} 42. Kf1 {[%emt 0:00:01]} Rf2+ {[%emt 0:01:22]} 43. Kg1 {[%emt 0:00:01]} Rg2+ {[%emt 0:00:04]} 44. Kf1 {[%emt 0:00:00]} Rf2+ {[%emt 0:00:01]} 1/2-1/2

[Event "2nd Salamanca Festival 2019"]
[Site "Salamanca"]
[Date "2019.11.30"]
[Round "7.2"]
[White "Iturrizaga Bonelli, Eduardo"]
[Black "Vega Gutierrez, Sabrina"]
[Result "1-0"]
[ECO "A27"]
[WhiteElo "2597"]
[BlackElo "2374"]
[Annotator "RC"]
[PlyCount "61"]
[EventDate "2019.11.27"]
[EventType "swiss"]
[EventCountry "ESP"]
[SourceTitle "playchess.com"]
[Source "ChessBase"]
[SourceQuality "1"]
[TimeControl "2400+5"]

1. c4 {[%emt 0:00:00]} e5 {[%emt 0:00:00]} 2. Nc3 {[%emt 0:00:06]} Nc6 {[%emt 0:00:05]} 3. Nf3 {[%emt 0:01:00]} f5 {[%emt 0:01:42]} 4. d4 {[%emt 0:00:03]} e4 {[%emt 0:00:48]} 5. Ng5 {[%emt 0:00:20]} Be7 {[%emt 0:00:04]} 6. Nh3 {[%emt 0:00:08]} Nf6 {[%emt 0:00:12]} 7. Nf4 {[%emt 0:00:22]} O-O {[%emt 0:00:14]} 8. g3 {[%emt 0:00:03]} a5 {[%emt 0:02:12]} 9. Bg2 {[%emt 0:00:03]} Nb4 {[%emt 0:00:22]} 10. f3 {[%emt 0:02:44]} exf3 {[%emt 0:01:46]} 11. exf3 {[%emt 0:01:58]} c6 {[%emt 0:01:03]} 12. O-O {[%emt 0:00:10]} Na6 {[%emt 0:02:15]} 13. Re1 {[%emt 0:00:24]} Nc7 {[%emt 0:00:18]} 14. d5 {[%emt 0:01:04]} Bc5+ {[%emt 0:01:56]} 15. Be3 {[%emt 0:00:15]} Bxe3+ {[%emt 0:03:09]} 16. Rxe3 {[%emt 0:00:01]} Na6 {[%emt 0:00:39]} 17. Qd4 {[%emt 0:00:55]} Nb4 {[%emt 0:00:38]} 18. Rc1 {[%emt 0:00:25]} Re8 {[%emt 0:05:56]} 19. a3 {[%emt 0:05:00]} Rxe3 {[%emt 0:00:37]} 20. Qxe3 {[%emt 0:00:01]} Na6 {[%emt 0:00:02]} 21. d6 {[%emt 0:00:15]} b6 {[%emt 0:01:48]} 22. Na4 {[%emt 0:02:56]} Rb8 {[%emt 0:02:31]} 23. Bf1 {[%emt 0:00:02]} Qe8 {[%emt 0:01:38]} 24. Qd2 {[%emt 0:00:27]} Nc5 {[%emt 0:00:59]} 25. Nxc5 {[%emt 0:00:11]} bxc5 {[%emt 0:00:02]} 26. Re1 {[%emt 0:00:09]} Qd8 {[%emt 0:01:47]} 27. Re7 {[%emt 0:00:06]} Qb6 {[%emt 0:01:36]} 28. Ne6 {[%emt 0:01:12]} dxe6 {[%emt 0:03:53]} 29. Qg5 {[%emt 0:00:02]} Nh5 {[%emt 0:00:02]} 30. Re8+ {[%emt 0:00:02]} Kf7 {[%emt 0:00:01]} 31. Rf8+ {[%emt 0:00:03]} 1-0